[Event "*** SCC Grand Prix: Titled Tuesday Blitz"]
[Site "Chess.com"]
[Date "2020.08.04"]
[Round "10"]
[White "dopolian"]
[Black "crescentmoon2411"]
[Result "1-0"]
[WhiteElo "2534"]
[BlackElo "2763"]
[TimeControl "180+1"]
[EndTime "15:38:39 PDT"]
[Termination "dopolian won by resignation"]

1. e4 {[%clk 0:03:00.9]} 1... e6 {[%clk 0:02:49.7]} 2. d4 {[%clk 0:03:00.4]}
2... d5 {[%clk 0:02:49.9]} 3. Nd2 {[%clk 0:03:00.6]} 3... dxe4 {[%clk
0:02:42.7]} 4. Nxe4 {[%clk 0:03:01.5]} 4... Bd7 {[%clk 0:02:43.2]} 5. Nf3 {[%clk
0:03:00.4]} 5... Bc6 {[%clk 0:02:43.5]} 6. Bd3 {[%clk 0:03:01]} 6... Nd7 {[%clk
0:02:43.3]} 7. O-O {[%clk 0:03:00.3]} 7... Ngf6 {[%clk 0:02:43.6]} 8. Nxf6+
{[%clk 0:03:00.3]} 8... Nxf6 {[%clk 0:02:42.5]} 9. c3 {[%clk 0:02:59.8]} 9...
Bd6 {[%clk 0:02:34.6]} 10. Ne5 {[%clk 0:02:57.4]} 10... Bxe5 {[%clk 0:02:33]}
11. dxe5 {[%clk 0:02:54.3]} 11... Qd5 {[%clk 0:02:32.9]} 12. f3 {[%clk
0:02:31.6]} 12... Qxe5 {[%clk 0:02:32.5]} 13. Re1 {[%clk 0:02:30.3]} 13... Qd6
{[%clk 0:02:15.1]} 14. Bg5 {[%clk 0:02:27.3]} 14... O-O-O {[%clk 0:02:09.9]} 15.
Bc2 {[%clk 0:02:10]} 15... Qc5+ {[%clk 0:02:04.1]} 16. Be3 {[%clk 0:02:10]}
16... Rxd1 {[%clk 0:02:04.1]} 17. Bxc5 {[%clk 0:02:10.2]} 17... Rxa1 {[%clk
0:01:43.3]} 18. Rxa1 {[%clk 0:02:11.1]} 18... Nd5 {[%clk 0:01:26.4]} 19. Rd1
{[%clk 0:02:05]} 19... f6 {[%clk 0:01:07]} 20. c4 {[%clk 0:01:58.6]} 20... Nf4
{[%clk 0:00:57.7]} 21. h4 {[%clk 0:01:33.4]} 21... e5 {[%clk 0:00:23.6]} 22. b4
{[%clk 0:01:14.2]} 22... a6 {[%clk 0:00:19.3]} 23. a4 {[%clk 0:01:12.4]} 23...
b6 {[%clk 0:00:18.6]} 24. Be3 {[%clk 0:01:12.2]} 24... Ng6 {[%clk 0:00:15.2]}
25. h5 {[%clk 0:00:59.2]} 25... Ne7 {[%clk 0:00:14.7]} 26. b5 {[%clk 0:00:51.8]}
26... axb5 {[%clk 0:00:14.2]} 27. axb5 {[%clk 0:00:52.2]} 27... Bb7 {[%clk
0:00:14.2]} 28. c5 {[%clk 0:00:45]} 28... bxc5 {[%clk 0:00:10.5]} 29. Bxc5
{[%clk 0:00:45.9]} 29... Nd5 {[%clk 0:00:10.5]} 30. Be4 {[%clk 0:00:42.9]} 30...
Nc3 {[%clk 0:00:07.1]} 31. Bf5+ {[%clk 0:00:35.8]} 31... Kb8 {[%clk 0:00:07.1]}
32. Rd7 {[%clk 0:00:35.1]} 32... g6 {[%clk 0:00:07.6]} 33. Bd3 {[%clk
0:00:21.8]} 33... e4 {[%clk 0:00:06.5]} 34. fxe4 {[%clk 0:00:19.6]} 34... Bxe4
{[%clk 0:00:07.4]} 35. b6 {[%clk 0:00:14]} 35... Bxd3 {[%clk 0:00:07.3]} 36.
bxc7+ {[%clk 0:00:12.5]} 36... Kc8 {[%clk 0:00:07.3]} 37. Rxd3 {[%clk
0:00:11.9]} 37... Nb5 {[%clk 0:00:07.3]} 38. Bb6 {[%clk 0:00:08.1]} 38... Nxc7
{[%clk 0:00:05.5]} 39. Rc3 {[%clk 0:00:08.2]} 39... Kb7 {[%clk 0:00:04.4]} 40.
Bxc7 {[%clk 0:00:08.3]} 40... Rc8 {[%clk 0:00:03.6]} 41. Ba5 {[%clk 0:00:08.7]}
41... Ra8 {[%clk 0:00:03.3]} 42. Bb4 {[%clk 0:00:04]} 42... Ra4 {[%clk
0:00:02.7]} 43. Be7 {[%clk 0:00:03.9]} 43... gxh5 {[%clk 0:00:02.2]} 44. Bxf6
{[%clk 0:00:03.9]} 44... Rf4 {[%clk 0:00:01.2]} 45. Be5 {[%clk 0:00:03.8]} 45...
Rf5 {[%clk 0:00:01.6]} 46. Bg3 {[%clk 0:00:04]} 46... Kb6 {[%clk 0:00:01.9]} 47.
Rc7 {[%clk 0:00:03.6]} 47... h4 {[%clk 0:00:01.6]} 48. Bh2 {[%clk 0:00:02.6]}
48... Rh5 {[%clk 0:00:02]} 49. Rc3 {[%clk 0:00:02.4]} 49... Kb5 {[%clk
0:00:02.1]} 50. Rh3 {[%clk 0:00:02.5]} 50... Kc4 {[%clk 0:00:02.4]} 51. Bd6
{[%clk 0:00:02.4]} 51... Kd5 {[%clk 0:00:02.7]} 52. Be7 {[%clk 0:00:02.5]} 1-0

[Event "*** SCC Grand Prix: Titled Tuesday Blitz"]
[Site "Chess.com"]
[Date "2020.08.04"]
[Round "10"]
[White "DrMamaliga"]
[Black "Batsai"]
[Result "1/2-1/2"]
[WhiteElo "2177"]
[BlackElo "2331"]
[TimeControl "180+1"]
[EndTime "15:38:51 PDT"]
[Termination "Game drawn by stalemate"]

1. c4 {[%clk 0:03:00.9]} 1... Nf6 {[%clk 0:02:31.4]} 2. Nc3 {[%clk 0:02:58.6]}
2... e5 {[%clk 0:02:31]} 3. Nf3 {[%clk 0:02:56.2]} 3... Nc6 {[%clk 0:02:31.3]}
4. e3 {[%clk 0:02:56.5]} 4... Bb4 {[%clk 0:02:31]} 5. Qc2 {[%clk 0:02:56.5]}
5... O-O {[%clk 0:02:29.9]} 6. Nd5 {[%clk 0:02:54.4]} 6... Re8 {[%clk
0:02:18.3]} 7. Qf5 {[%clk 0:02:53.6]} 7... d6 {[%clk 0:02:11.9]} 8. Nxf6+ {[%clk
0:02:53]} 8... Qxf6 {[%clk 0:02:11.8]} 9. Qxf6 {[%clk 0:02:51.3]} 9... gxf6
{[%clk 0:02:12.7]} 10. a3 {[%clk 0:02:51.7]} 10... Ba5 {[%clk 0:02:09.3]} 11.
Be2 {[%clk 0:02:46]} 11... e4 {[%clk 0:02:08.3]} 12. Nd4 {[%clk 0:02:45.5]}
12... Nxd4 {[%clk 0:01:59.3]} 13. exd4 {[%clk 0:02:46.4]} 13... Bb6 {[%clk
0:01:59.8]} 14. d5 {[%clk 0:02:37.8]} 14... Bd4 {[%clk 0:01:55.8]} 15. Rb1
{[%clk 0:02:37.1]} 15... Bf5 {[%clk 0:01:49.3]} 16. Ra1 {[%clk 0:02:08.8]} 16...
a5 {[%clk 0:01:43.8]} 17. O-O {[%clk 0:02:07.6]} 17... a4 {[%clk 0:01:41]} 18.
Ra2 {[%clk 0:02:05]} 18... Ra6 {[%clk 0:01:31.4]} 19. Re1 {[%clk 0:02:00]} 19...
Rb6 {[%clk 0:01:31]} 20. Kf1 {[%clk 0:01:55.8]} 20... Ra8 {[%clk 0:01:27.3]} 21.
h4 {[%clk 0:01:44.8]} 21... Ra5 {[%clk 0:01:12.2]} 22. g4 {[%clk 0:01:43.7]}
22... Bd7 {[%clk 0:01:09]} 23. Bd1 {[%clk 0:01:43.3]} 23... f5 {[%clk
0:01:06.4]} 24. f3 {[%clk 0:01:33.3]} 24... exf3 {[%clk 0:01:00.6]} 25. Re7
{[%clk 0:01:31.8]} 25... fxg4 {[%clk 0:00:25.1]} 26. Rxd7 {[%clk 0:01:31.3]}
26... Rb3 {[%clk 0:00:13.2]} 27. d3 {[%clk 0:00:21.5]} 27... Rxd3 {[%clk
0:00:12.4]} 28. Bxf3 {[%clk 0:00:17.4]} 28... Rxf3+ {[%clk 0:00:11.3]} 29. Ke2
{[%clk 0:00:17.6]} 29... Ra8 {[%clk 0:00:08.8]} 30. Bh6 {[%clk 0:00:15.2]} 30...
Re8+ {[%clk 0:00:08.9]} 31. Kd2 {[%clk 0:00:12.8]} 31... Bc3+ {[%clk 0:00:06.2]}
32. Kd1 {[%clk 0:00:04.4]} 32... Re1+ {[%clk 0:00:05.1]} 33. Kc2 {[%clk
0:00:04.8]} 33... Re2+ {[%clk 0:00:05.6]} 34. Kd1 {[%clk 0:00:05.1]} 34... Re8
{[%clk 0:00:04.8]} 35. Kc2 {[%clk 0:00:04.6]} 35... Be5 {[%clk 0:00:03.5]} 36.
Ra1 {[%clk 0:00:03.5]} 36... g3 {[%clk 0:00:04.4]} 37. Rg1 {[%clk 0:00:02.8]}
37... Rf2+ {[%clk 0:00:05.3]} 38. Kd3 {[%clk 0:00:02.5]} 38... g2 {[%clk
0:00:05.7]} 39. Be3 {[%clk 0:00:01.8]} 39... Bg3 {[%clk 0:00:03.8]} 40. Rxc7
{[%clk 0:00:01.9]} 40... Rxe3+ {[%clk 0:00:02.1]} 41. Kxe3 {[%clk 0:00:02.2]}
41... Rf4 {[%clk 0:00:02.2]} 42. Rc8+ {[%clk 0:00:02.4]} 42... Kg7 {[%clk
0:00:02]} 43. Rxg2 {[%clk 0:00:02.8]} 43... Rg4 {[%clk 0:00:02.9]} 44. Kf3
{[%clk 0:00:02.6]} 44... f5 {[%clk 0:00:03.8]} 45. Rxg3 {[%clk 0:00:03]} 45...
Rxg3+ {[%clk 0:00:03.9]} 46. Kxg3 {[%clk 0:00:03.9]} 46... Kf6 {[%clk
0:00:04.8]} 47. Kf4 {[%clk 0:00:04.4]} 47... h5 {[%clk 0:00:04.4]} 48. Rf8+
{[%clk 0:00:04.8]} 48... Ke7 {[%clk 0:00:04.3]} 49. Rxf5 {[%clk 0:00:05.4]}
49... b5 {[%clk 0:00:04.9]} 50. Rxh5 {[%clk 0:00:05.9]} 50... bxc4 {[%clk
0:00:05.8]} 51. Ke4 {[%clk 0:00:05.7]} 51... c3 {[%clk 0:00:06.7]} 52. bxc3
{[%clk 0:00:06.6]} 52... Kd8 {[%clk 0:00:07.6]} 53. Kd4 {[%clk 0:00:06.9]} 53...
Kc7 {[%clk 0:00:08.4]} 54. c4 {[%clk 0:00:07.8]} 54... Kb6 {[%clk 0:00:09.3]}
55. c5+ {[%clk 0:00:07.1]} 55... Ka5 {[%clk 0:00:10.2]} 56. Kc4 {[%clk
0:00:07.9]} 56... dxc5 {[%clk 0:00:10.1]} 57. Kxc5 {[%clk 0:00:07.5]} 57... Ka6
{[%clk 0:00:10]} 58. Rh6+ {[%clk 0:00:07.4]} 58... Ka5 {[%clk 0:00:10.9]} 59.
Re6 {[%clk 0:00:05.6]} 1/2-1/2

[Event "*** SCC Grand Prix: Titled Tuesday Blitz"]
[Site "Chess.com"]
[Date "2020.08.04"]
[Round "10"]
[White "Lucas_Tomiello"]
[Black "Mikhail_Golubev"]
[Result "0-1"]
[WhiteElo "2463"]
[BlackElo "2602"]
[TimeControl "180+1"]
[EndTime "15:38:52 PDT"]
[Termination "Mikhail_Golubev won by resignation"]

1. e4 {[%clk 0:03:00.9]} 1... c5 {[%clk 0:02:57.7]} 2. Nf3 {[%clk 0:03:01.3]}
2... d6 {[%clk 0:02:57.9]} 3. d4 {[%clk 0:03:01.7]} 3... Nf6 {[%clk 0:02:57.9]}
4. Nc3 {[%clk 0:03:01.8]} 4... cxd4 {[%clk 0:02:57.4]} 5. Nxd4 {[%clk
0:03:02.7]} 5... Nc6 {[%clk 0:02:57.3]} 6. Bg5 {[%clk 0:03:02]} 6... e6 {[%clk
0:02:54.6]} 7. Qd2 {[%clk 0:03:01.3]} 7... a6 {[%clk 0:02:54.1]} 8. f4 {[%clk
0:03:00.8]} 8... h6 {[%clk 0:02:47.5]} 9. Bxf6 {[%clk 0:02:46.6]} 9... Qxf6
{[%clk 0:02:46.6]} 10. Nf3 {[%clk 0:02:36.1]} 10... Qd8 {[%clk 0:02:31.5]} 11.
O-O-O {[%clk 0:02:35.2]} 11... Be7 {[%clk 0:02:31.6]} 12. g4 {[%clk 0:02:33.8]}
12... Bd7 {[%clk 0:02:26]} 13. h4 {[%clk 0:02:33.4]} 13... Rc8 {[%clk
0:02:22.5]} 14. Kb1 {[%clk 0:02:29.2]} 14... b5 {[%clk 0:02:21]} 15. Bd3 {[%clk
0:02:26.6]} 15... Na5 {[%clk 0:02:00]} 16. g5 {[%clk 0:02:25.9]} 16... Nc4
{[%clk 0:01:57.7]} 17. Bxc4 {[%clk 0:02:24]} 17... Rxc4 {[%clk 0:01:57.5]} 18.
Qd3 {[%clk 0:01:57.1]} 18... Qc7 {[%clk 0:01:52.1]} 19. Ne2 {[%clk 0:01:52.5]}
19... b4 {[%clk 0:01:40.9]} 20. f5 {[%clk 0:01:36.8]} 20... Rc5 {[%clk
0:01:15.1]} 21. Nf4 {[%clk 0:01:29.3]} 21... exf5 {[%clk 0:00:37.4]} 22. Nd5
{[%clk 0:01:21.8]} 22... Qd8 {[%clk 0:00:37.5]} 23. exf5 {[%clk 0:01:16.5]}
23... Bc6 {[%clk 0:00:21.9]} 24. Nxe7 {[%clk 0:01:05.1]} 24... Kxe7 {[%clk
0:00:21.9]} 25. Rhe1+ {[%clk 0:01:02.3]} 25... Kf8 {[%clk 0:00:22]} 26. g6
{[%clk 0:00:43]} 26... Rd5 {[%clk 0:00:19.6]} 27. Qe3 {[%clk 0:00:36.1]} 27...
Rxd1+ {[%clk 0:00:19]} 28. Rxd1 {[%clk 0:00:37]} 28... Qe7 {[%clk 0:00:17.8]}
29. Qf4 {[%clk 0:00:32.1]} 29... fxg6 {[%clk 0:00:16.3]} 30. fxg6+ {[%clk
0:00:27.2]} 30... Qf6 {[%clk 0:00:16]} 31. Qxd6+ {[%clk 0:00:19.7]} 31... Qxd6
{[%clk 0:00:15.3]} 32. Rxd6 {[%clk 0:00:20.6]} 32... Be8 {[%clk 0:00:12.4]} 33.
Ne5 {[%clk 0:00:19.8]} 33... Ke7 {[%clk 0:00:12]} 34. Rxa6 {[%clk 0:00:19.2]}
34... Rf8 {[%clk 0:00:12.3]} 35. Ra7+ {[%clk 0:00:19.4]} 35... Ke6 {[%clk
0:00:11.4]} 36. Nf7 {[%clk 0:00:16.8]} 36... Bxf7 {[%clk 0:00:10.5]} 37. gxf7
{[%clk 0:00:17.7]} 37... Rxf7 {[%clk 0:00:10.8]} 38. Rxf7 {[%clk 0:00:18]} 38...
Kxf7 {[%clk 0:00:10.4]} 39. a4 {[%clk 0:00:18.9]} 39... g5 {[%clk 0:00:09.2]}
40. a5 {[%clk 0:00:17.2]} 40... g4 {[%clk 0:00:09]} 41. a6 {[%clk 0:00:16.2]}
41... g3 {[%clk 0:00:09.4]} 42. a7 {[%clk 0:00:16]} 42... g2 {[%clk 0:00:09.7]}
43. a8=Q {[%clk 0:00:16.5]} 43... g1=Q+ {[%clk 0:00:09.4]} 44. Ka2 {[%clk
0:00:17.1]} 44... Qd4 {[%clk 0:00:07.2]} 45. Qb7+ {[%clk 0:00:16.8]} 45... Kg6
{[%clk 0:00:07]} 46. Qc6+ {[%clk 0:00:12.6]} 46... Kh5 {[%clk 0:00:06.8]} 47. c3
{[%clk 0:00:11.8]} 47... bxc3 {[%clk 0:00:06.1]} 48. bxc3 {[%clk 0:00:12.7]}
48... Qxh4 {[%clk 0:00:05.7]} 49. Qd5+ {[%clk 0:00:12.9]} 49... Qg5 {[%clk
0:00:05.7]} 50. Qf3+ {[%clk 0:00:10.3]} 50... Kg6 {[%clk 0:00:05.7]} 51. Qe4+
{[%clk 0:00:10.3]} 51... Qf5 {[%clk 0:00:05.8]} 52. Qg2+ {[%clk 0:00:09.6]}
52... Qg5 {[%clk 0:00:06]} 53. Qe4+ {[%clk 0:00:10]} 53... Qf5 {[%clk
0:00:06.4]} 54. Qg2+ {[%clk 0:00:10.3]} 54... Kf6 {[%clk 0:00:06.9]} 55. Qc6+
{[%clk 0:00:10.1]} 55... Qe6+ {[%clk 0:00:07]} 56. Qxe6+ {[%clk 0:00:10.7]}
56... Kxe6 {[%clk 0:00:07.4]} 57. Kb3 {[%clk 0:00:08.3]} 57... h5 {[%clk
0:00:07.9]} 58. Kc4 {[%clk 0:00:08.8]} 58... h4 {[%clk 0:00:08.4]} 59. Kd3
{[%clk 0:00:05.5]} 59... h3 {[%clk 0:00:08.9]} 0-1

[Event "*** SCC Grand Prix: Titled Tuesday Blitz"]
[Site "Chess.com"]
[Date "2020.08.04"]
[Round "10"]
[White "Andreikka"]
[Black "Bigfish1995"]
[Result "0-1"]
[WhiteElo "2853"]
[BlackElo "2980"]
[TimeControl "180+1"]
[EndTime "15:38:54 PDT"]
[Termination "Bigfish1995 won on time"]

1. c4 {[%clk 0:03:00.9]} 1... e5 {[%clk 0:02:59.5]} 2. Nc3 {[%clk 0:02:59.4]}
2... Nc6 {[%clk 0:02:59.8]} 3. Nf3 {[%clk 0:02:58.5]} 3... Nf6 {[%clk
0:03:00.4]} 4. g3 {[%clk 0:02:56]} 4... Bb4 {[%clk 0:02:59.1]} 5. Bg2 {[%clk
0:02:55.8]} 5... O-O {[%clk 0:02:59.3]} 6. O-O {[%clk 0:02:56]} 6... Bxc3 {[%clk
0:02:58.7]} 7. bxc3 {[%clk 0:02:55]} 7... e4 {[%clk 0:02:56.7]} 8. Ng5 {[%clk
0:02:53.3]} 8... Re8 {[%clk 0:02:56.8]} 9. f3 {[%clk 0:02:47.9]} 9... exf3
{[%clk 0:02:55.8]} 10. Nxf3 {[%clk 0:02:44.4]} 10... Qe7 {[%clk 0:02:53.1]} 11.
e3 {[%clk 0:02:38.1]} 11... Qc5 {[%clk 0:02:53]} 12. d3 {[%clk 0:01:56.7]} 12...
d5 {[%clk 0:02:50.7]} 13. Nh4 {[%clk 0:01:24.9]} 13... dxc4 {[%clk 0:02:13.3]}
14. d4 {[%clk 0:01:25.1]} 14... Qa5 {[%clk 0:02:06.6]} 15. Qc2 {[%clk
0:01:21.1]} 15... Nd5 {[%clk 0:02:04.5]} 16. Qf2 {[%clk 0:00:40.5]} 16... f6
{[%clk 0:01:31]} 17. Bd2 {[%clk 0:00:39.3]} 17... Nde7 {[%clk 0:01:02.7]} 18. e4
{[%clk 0:00:37.9]} 18... Rf8 {[%clk 0:00:58.1]} 19. Qe2 {[%clk 0:00:28.1]} 19...
Kh8 {[%clk 0:00:38.9]} 20. e5 {[%clk 0:00:23.6]} 20... Nd5 {[%clk 0:00:34.4]}
21. Qxc4 {[%clk 0:00:19.1]} 21... Nce7 {[%clk 0:00:18.5]} 22. Rae1 {[%clk
0:00:13.4]} 22... f5 {[%clk 0:00:18.7]} 23. Bg5 {[%clk 0:00:12]} 23... c6 {[%clk
0:00:17.8]} 24. Qd3 {[%clk 0:00:09.1]} 24... Ng8 {[%clk 0:00:16]} 25. c4 {[%clk
0:00:06.9]} 25... Nb6 {[%clk 0:00:16.5]} 26. d5 {[%clk 0:00:06]} 26... cxd5
{[%clk 0:00:14.2]} 27. cxd5 {[%clk 0:00:06.9]} 27... Bd7 {[%clk 0:00:14.8]} 28.
Bd2 {[%clk 0:00:03.9]} 28... Qxa2 {[%clk 0:00:14.4]} 29. e6 {[%clk 0:00:04.3]}
29... Bb5 {[%clk 0:00:14.1]} 30. Qxb5 {[%clk 0:00:03.6]} 30... Qxd2 {[%clk
0:00:14.7]} 31. Rd1 {[%clk 0:00:03.7]} 31... Qe3+ {[%clk 0:00:14.4]} 32. Kh1
{[%clk 0:00:04.3]} 32... f4 {[%clk 0:00:13.9]} 33. Rfe1 {[%clk 0:00:02.9]} 33...
Qc3 {[%clk 0:00:13.7]} 34. d6 {[%clk 0:00:02.2]} 34... fxg3 {[%clk 0:00:13.4]}
35. hxg3 {[%clk 0:00:01.7]} 35... Qxg3 {[%clk 0:00:13.1]} 36. Nf5 {[%clk
0:00:01.9]} 36... Qg5 {[%clk 0:00:12.1]} 37. Rf1 {[%clk 0:00:02.5]} 37... Rae8
{[%clk 0:00:06.1]} 38. e7 {[%clk 0:00:02.3]} 38... Nf6 {[%clk 0:00:04.9]} 39.
exf8=Q+ {[%clk 0:00:02.3]} 39... Rxf8 {[%clk 0:00:05.8]} 40. Qd3 {[%clk
0:00:02]} 40... Ng4 {[%clk 0:00:05.8]} 41. Qg3 {[%clk 0:00:02.5]} 41... Rxf5
{[%clk 0:00:04.9]} 42. Rxf5 {[%clk 0:00:02.9]} 42... Qxf5 {[%clk 0:00:05.8]} 43.
d7 {[%clk 0:00:03.5]} 43... Nxd7 {[%clk 0:00:05.3]} 44. Rxd7 {[%clk 0:00:04]}
44... h5 {[%clk 0:00:03.3]} 45. Rd8+ {[%clk 0:00:03.5]} 45... Kh7 {[%clk
0:00:03.4]} 46. Kg1 {[%clk 0:00:03.8]} 46... Qb1+ {[%clk 0:00:03.3]} 47. Bf1
{[%clk 0:00:03.7]} 47... Qb6+ {[%clk 0:00:03.9]} 48. Kg2 {[%clk 0:00:02.8]}
48... Qxd8 {[%clk 0:00:04.6]} 49. Bd3+ {[%clk 0:00:03.1]} 49... Kh6 {[%clk
0:00:04.1]} 50. Qf4+ {[%clk 0:00:03.5]} 50... Qg5 {[%clk 0:00:04.4]} 51. Qd6+
{[%clk 0:00:04.1]} 51... Nf6+ {[%clk 0:00:04.5]} 52. Kf3 {[%clk 0:00:04.7]}
52... Qg4+ {[%clk 0:00:04.3]} 53. Ke3 {[%clk 0:00:05.3]} 53... h4 {[%clk
0:00:04.7]} 54. Kd2 {[%clk 0:00:05.4]} 54... Qg2+ {[%clk 0:00:03.4]} 55. Kc3
{[%clk 0:00:05]} 55... Qc6+ {[%clk 0:00:04]} 0-1

[Event "*** SCC Grand Prix: Titled Tuesday Blitz"]
[Site "Chess.com"]
[Date "2020.08.04"]
[Round "10"]
[White "Yoshikrov"]
[Black "arminmusovic"]
[Result "1/2-1/2"]
[WhiteElo "2143"]
[BlackElo "2462"]
[TimeControl "180+1"]
[EndTime "15:39:00 PDT"]
[Termination "Game drawn by agreement"]

1. e4 {[%clk 0:03:00.9]} 1... c6 {[%clk 0:02:58.6]} 2. c4 {[%clk 0:03:00.8]}
2... d5 {[%clk 0:02:59.5]} 3. exd5 {[%clk 0:03:01.2]} 3... cxd5 {[%clk
0:03:00.4]} 4. cxd5 {[%clk 0:03:02.1]} 4... a6 {[%clk 0:03:01]} 5. Nc3 {[%clk
0:03:00.5]} 5... Nf6 {[%clk 0:03:01.9]} 6. Qb3 {[%clk 0:02:55.3]} 6... g6 {[%clk
0:03:01.7]} 7. Nf3 {[%clk 0:02:55.3]} 7... Bg7 {[%clk 0:03:00.2]} 8. a4 {[%clk
0:02:50.6]} 8... O-O {[%clk 0:02:59.6]} 9. Bc4 {[%clk 0:02:50.6]} 9... Nbd7
{[%clk 0:02:56.6]} 10. a5 {[%clk 0:02:42.5]} 10... Nc5 {[%clk 0:02:49.8]} 11.
Qb4 {[%clk 0:02:26.1]} 11... Qd6 {[%clk 0:02:37.7]} 12. O-O {[%clk 0:02:18.2]}
12... Bg4 {[%clk 0:02:37.7]} 13. d4 {[%clk 0:02:09.4]} 13... Nce4 {[%clk
0:02:25.7]} 14. Qxd6 {[%clk 0:02:08.1]} 14... Nxd6 {[%clk 0:02:26.1]} 15. Be2
{[%clk 0:02:03.9]} 15... Rfd8 {[%clk 0:02:20]} 16. h3 {[%clk 0:02:04]} 16...
Bxf3 {[%clk 0:02:02.3]} 17. Bxf3 {[%clk 0:02:04.1]} 17... Nb5 {[%clk 0:02:02.8]}
18. Nxb5 {[%clk 0:01:41.4]} 18... axb5 {[%clk 0:02:02.3]} 19. d6 {[%clk
0:01:42]} 19... Rxd6 {[%clk 0:01:34.8]} 20. Bxb7 {[%clk 0:01:41]} 20... Ra7
{[%clk 0:01:30.1]} 21. a6 {[%clk 0:01:38]} 21... Nd5 {[%clk 0:01:23.8]} 22. Be3
{[%clk 0:01:28.7]} 22... Nxe3 {[%clk 0:01:16.3]} 23. fxe3 {[%clk 0:01:28.9]}
23... Bh6 {[%clk 0:01:16.8]} 24. Kf2 {[%clk 0:01:20.4]} 24... e5 {[%clk
0:01:04.7]} 25. d5 {[%clk 0:01:13.2]} 25... Bg5 {[%clk 0:00:50.6]} 26. Rfc1
{[%clk 0:01:11.4]} 26... Bh4+ {[%clk 0:00:47.4]} 27. Ke2 {[%clk 0:01:07.7]}
27... Bd8 {[%clk 0:00:48.3]} 28. Rc8 {[%clk 0:01:06.7]} 28... Kf8 {[%clk
0:00:43.7]} 29. Ra8 {[%clk 0:00:58]} 29... Rxa8 {[%clk 0:00:43.7]} 30. Bxa8
{[%clk 0:00:58.5]} 30... Bb6 {[%clk 0:00:44.1]} 31. Bc6 {[%clk 0:00:53]} 31...
Ba7 {[%clk 0:00:40.6]} 32. Rd1 {[%clk 0:00:47.5]} 32... Ke7 {[%clk 0:00:38.8]}
33. Bxb5 {[%clk 0:00:46.8]} 33... Rb6 {[%clk 0:00:38.4]} 34. Bc6 {[%clk
0:00:34.5]} 34... Rxb2+ {[%clk 0:00:36.7]} 35. Rd2 {[%clk 0:00:34.7]} 35...
Rxd2+ {[%clk 0:00:33]} 36. Kxd2 {[%clk 0:00:35.6]} 36... f5 {[%clk 0:00:32.6]}
37. Kd3 {[%clk 0:00:32.1]} 37... Kd6 {[%clk 0:00:29.3]} 38. Bb7 {[%clk
0:00:31.5]} 38... e4+ {[%clk 0:00:26.2]} 39. Ke2 {[%clk 0:00:29.2]} 39... Ke5
{[%clk 0:00:21.6]} 40. g3 {[%clk 0:00:25.6]} 40... g5 {[%clk 0:00:20.7]} 41. h4
{[%clk 0:00:22.6]} 41... h6 {[%clk 0:00:20.5]} 42. hxg5 {[%clk 0:00:20.2]} 42...
hxg5 {[%clk 0:00:21.4]} 43. Bc6 {[%clk 0:00:18.9]} 43... Kf6 {[%clk 0:00:21.6]}
44. d6 {[%clk 0:00:17.5]} 44... Ke6 {[%clk 0:00:20.7]} 45. d7 {[%clk 0:00:17.6]}
45... Ke7 {[%clk 0:00:21.1]} 46. Bb5 {[%clk 0:00:16.7]} 46... Kd8 {[%clk
0:00:21.3]} 47. Kd2 {[%clk 0:00:16.1]} 47... Ke7 {[%clk 0:00:21.3]} 48. Ba4
{[%clk 0:00:14.9]} 48... Bb6 {[%clk 0:00:21.2]} 49. Ke2 {[%clk 0:00:14.3]} 49...
Ba7 {[%clk 0:00:21.3]} 50. Bb5 {[%clk 0:00:14.5]} 50... Bb6 {[%clk 0:00:21.4]}
51. d8=Q+ {[%clk 0:00:12.6]} 51... Kxd8 {[%clk 0:00:21]} 52. Bc4 {[%clk
0:00:12.9]} 52... Ke7 {[%clk 0:00:21.2]} 53. Bd5 {[%clk 0:00:12.6]} 53... Kf6
{[%clk 0:00:21.3]} 54. Bc6 {[%clk 0:00:12.9]} 54... Ke5 {[%clk 0:00:21.6]} 55.
Bd7 {[%clk 0:00:13]} 55... Ba7 {[%clk 0:00:21.1]} 56. Bc8 {[%clk 0:00:12.9]}
56... Bb8 {[%clk 0:00:21.3]} 57. Bd7 {[%clk 0:00:12.4]} 57... Kf6 {[%clk
0:00:21]} 58. Bc8 {[%clk 0:00:11.5]} 58... Ke5 {[%clk 0:00:21.3]} 59. Bd7 {[%clk
0:00:11.8]} 59... Ba7 {[%clk 0:00:21.6]} 60. Bc8 {[%clk 0:00:12]} 60... f4
{[%clk 0:00:22.1]} 61. gxf4+ {[%clk 0:00:11.9]} 61... gxf4 {[%clk 0:00:23]} 62.
exf4+ {[%clk 0:00:12.4]} 62... Kxf4 {[%clk 0:00:23.9]} 63. Bb7 {[%clk 0:00:12]}
63... Bb6 {[%clk 0:00:24.3]} 64. Bc6 {[%clk 0:00:12.3]} 64... Ba7 {[%clk
0:00:24.6]} 65. Bb7 {[%clk 0:00:12.8]} 1/2-1/2